Workbook

Sheet Geral
E4: BDI | F4: =BDI!E22 -> 0.2472
A5: Serviço de Manutenção e Calibração dos Medidores de Vazão nos Perímetros de Irrigação da Codevasf
A6: Planilha Orçamentária
A7: ITEM | B7: DESCRIÇÃO | C7: UNID. | D7: QUANT. | E7: VALOR ( R$ )
E8: UNITÁRIO | F8: TOTAL
A9: 1 | B9: Serviços Preliminares
A10: 1.1 | B10: Mobilização/Desmobilização | C10: un. | D10: 1 | E10: =Custos_Mob_Desmob!H19 -> 4104.366667 | F10: =D10*E10 -> 4104.366667
A11: 1.2 | B11: Administração local | C11: un. | D11: 1 | E11: =Custos_permanência!H14 -> 13944.5 | F11: =D11*E11 -> 13944.5
E12: Sub Total | F12: =SUM(F10:F11) -> 18048.86667
A13: 2 | B13: Serviços Gráficos
A14: 2.1 | B14: Serviços Gráficos | C14: un. | D14: 1 | E14: =Custos_gráficos!G35 -> 409.785 | F14: =D14*E14 -> 409.785
E15: Sub Total | F15: =F14 -> 409.785
A16: 3 | B16: Manutenção e Calibração dos Medidores
A17: 3.1 | B17: Manutenção e Calibração dos Medidores em Canais | C17: un. | D17: 1 | E17: =CPU!I23 -> 1882.787687 | F17: =D17*E17 -> 1882.787687
A18: 3.2 | B18: Manutenção e Calibração dos Medidores em Adutora | C18: un. | D18: 8 | E18: =CPU!I46 -> 1919.480544 | F18: =D18*E18 -> 15355.84435
E19: Sub Total | F19: =F18+F17 -> 17238.63204
E20: TOTAL | F20: =F12+F15+F19 -> 35697.28371
E21: TOTAL GERAL (com BDI) | F21: =F20*(1+F4) -> 44521.65224

Sheet CPU
B1: SERVIÇO: Manutenção e Calibração dos Medidores de Vazão nos Canais, com Elaboração de Relatório Técnico e com Operação Assistida. | H1: UNIDADE: | I1: un.
B2: EQUIPAMENTO
B3: DESCRIÇÃO | C3: UNIDADE | D3: Coef. | H3: P.UNIT. | I3: P.TOTAL
B4: Medidor de vazão portátil para canal | C4: un. | D4: =M17 -> 0.0007936507937 | H4: =O10 -> 14830 | I4: =D4*H4 -> 11.76984127 | J4: Cotação | L4: Cotação Notebook Core i5, 4GB, 1TB
B5: Notebook | C5: un. | D5: =P17 -> 0.001587301587 | H5: =O6 -> 1929.426667 | I5: =D5*H5 -> 3.062582011 | J5: Cotação | L5: Americanas | M5: Extra | N5: Ponto Frio | O5: Média
L6: 1999 | M6: 1942.16 | N6: 1847.12 | O6: =AVERAGE(L6:N6) -> 1929.426667
B8: SUB-TOTAL | I8: =I4+I5 -> 14.83242328 | L8: Cotação Medidor de Vazão Portátil para canal *
B9: MATERIAL | L9: Hidromec ** | M9: Clean *** | N9: **** | O9: Valor
B10: DESCRIÇÃO | C10: UNIDADE | D10: QUANT. | H10: P.UNIT. | I10: P.TOTAL | L10: 14830 | M10: 59543.54 | O10: =L10 -> 14830
L11: Cotação Medidor de Vazão Portátil para adutora
L12: Contech | M12: Lamon | N12: Edital ANA 13/2013 | O12: Média
B13: SUB-TOTAL | L13: 52325 | M13: 66000 | N13: 64864 | O13: =AVERAGE(L13:N13) -> 61063
B14: MÃO DE OBRA | L14: Medidor | O14: Notebook
B15: DESCRIÇÃO | C15: UNIDADE | D15: QUANT. | H15: P.UNIT. | I15: P.TOTAL | L15: Vida útil = | M15: =8*21*12*10 -> 20160 | N15: h | O15: Vida útil = | P15: =8*21*12*5 -> 10080 | Q15: h
B16: Engenheiro Eletricista Pleno | C16: h | D16: 12 | H16: =SINAPI!E3 -> 54.4765343 | I16: =D16*H16 -> 653.7184116 | L16: Utilização = | M16: 16 | N16: h | O16: Utilização = | P16: 16 | Q16: h
B17: Eletrotécnico | C17: h | D17: 20 | H17: =SINAPI!E4 -> 8.285198556 | I17: =D17*H17 -> 165.7039711 | L17: Coef. | M17: =M16/M15 -> 0.0007936507937 | O17: Coef. | P17: =P16/P15 -> 0.001587301587
B19: SUB-TOTAL | I19: =SUM(I16:I18) -> 819.4223827
B20: Encargos Sociais horista | C20: =('Encargos Sociais'!C36)/100 -> 1.2796 | I20: =((I16+I17)*C20) -> 1048.532881
B21: CUSTO | I21: =I19+I20 -> 1867.955264
B22: CUSTO UNITÁRIO DO SERVIÇO | I22: =I8+I21 -> 1882.787687
B23: TOTAL DO SERVIÇO - R$ | I23: =I22 -> 1882.787687
B25: SERVIÇO: Manutenção e Calibração dos Medidores de Vazão nas Adutoras, com Elaboração de Relatório Técnico e com Operação Assistida. | H25: UNIDADE: | I25: un. | L25: * Envio das especificações a empresas para obtenção de tecnologia de medição para canais.
B26: EQUIPAMENTO | L26: ** Hidromec enviou valores referentes à tecnologia molinete.
B27: DESCRIÇÃO | C27: UNIDADE | D27: Coef. | H27: P.UNIT. | I27: P.TOTAL | L27: *** Clean envoi valores referentes à tecnologia Flow Tracker.
B28: Medidor de vazão portátil para adutora | C28: un. | D28: =M17 -> 0.0007936507937 | H28: =O13 -> 61063 | I28: =D28*H28 -> 48.46269841 | L28: **** Demais empresas não detêm a tecnologia.
B29: Notebook | C29: un. | D29: =P17 -> 0.001587301587 | H29: =O6 -> 1929.426667 | I29: =D29*H29 -> 3.062582011
B32: SUB-TOTAL | I32: =I28+I29 -> 51.52528042
B33: MATERIAL
B34: DESCRIÇÃO | C34: UNIDADE | D34: QUANT. | H34: P.UNIT. | I34: P.TOTAL
B37: SUB-TOTAL
B38: MÃO DE OBRA
B39: DESCRIÇÃO | C39: UNIDADE | D39: QUANT. | H39: P.UNIT. | I39: P.TOTAL
B40: Engenheiro Eletricista | C40: h | D40: 12 | H40: =SINAPI!E3 -> 54.4765343 | I40: =D40*H40 -> 653.7184116
B41: Técnico eletricísta | C41: h | D41: 20 | H41: =SINAPI!E4 -> 8.285198556 | I41: =D41*H41 -> 165.7039711
B42: SUB-TOTAL | I42: =SUM(I40:I41) -> 819.4223827
B43: Encargos Sociais horista | C43: =('Encargos Sociais'!C36)/100 -> 1.2796 | I43: =(I40+I41)*C43 -> 1048.532881
B44: CUSTO | I44: =I42+I43 -> 1867.955264
B45: CUSTO UNITÁRIO DO SERVIÇO | I45: =I32+I44 -> 1919.480544
B46: TOTAL DO SERVIÇO - R$ | I46: =I45 -> 1919.480544
B48: SERVIÇO: Confecção e impressão de relatórios parcial. | H48: UNIDADE: | I48: un. | M48: Toner /relatório parcial
B49: EQUIPAMENTO | M49: Vida útil = | N49: 200 | O49: páginas
B50: DESCRIÇÃO | C50: UNIDADE | D50: Coef. | H50: P.UNIT. | I50: P.TOTAL | M50: Utilização = | N50: 50 | O50: páginas/relatório
B51: Toner/impressora | C51: un. | D51: =N51 -> 0.25 | H51: =N62 -> 42.43666667 | I51: =D51*H51 -> 10.60916667 | M51: Coef. | N51: =N50/N49 -> 0.25
B52: Resma de papel A4 | C52: un. | D52: =50/500 -> 0.1 | H52: =N69 -> 14.43333333 | I52: =D52*H52 -> 1.443333333
M53: Toner / relatório final
M54: Vida útil = | N54: 200 | O54: páginas
B55: SUB-TOTAL | I55: =I51+I52 -> 12.0525 | M55: Utilização = | N55: 400 | O55: páginas/relatório
B56: MATERIAL | M56: Coef. | N56: =N55/N54 -> 2
B57: DESCRIÇÃO | C57: UNIDADE | D57: QUANT. | H57: P.UNIT. | I57: P.TOTAL | M57: Cotação dos cartuchos
M58: Loja | N58: R$
M59: HP | N59: 42.66
B60: SUB-TOTAL | M60: Extra | N60: 39.75
B61: MÃO DE OBRA | M61: Kalunga | N61: 44.9
B62: DESCRIÇÃO | C62: UNIDADE | D62: QUANT. | H62: P.UNIT. | I62: P.TOTAL | M62: Média | N62: =AVERAGE(N59:N61) -> 42.43666667
M64: Cotação papel A4
M65: Loja | N65: R$
M66: Staples | N66: 13.9
B67: SUB-TOTAL | I67: =SUM(I63:I66) -> 0 | M67: Walmart | N67: 12.5
B68: Encargos Sociais horista | I68: =(I63*G68)+((I64+I65+I66)*C68) -> 0 | M68: Americanas | N68: 16.9
B69: CUSTO | I69: =I67+I68 -> 0 | M69: Média | N69: =AVERAGE(N66:N68) -> 14.43333333
B70: CUSTO UNITÁRIO DO SERVIÇO | I70: =I55+I69 -> 12.0525
B71: TOTAL DO SERVIÇO - R$ | I71: =I70 -> 12.0525
B73: SERVIÇO: Confecção e impressão de relatórios final. | H73: UNIDADE: | I73: un.
B74: EQUIPAMENTO
B75: DESCRIÇÃO | C75: UNIDADE | D75: Coef. | H75: P.UNIT. | I75: P.TOTAL
B76: Toner/impressora | C76: un. | D76: =N56 -> 2 | H76: =N62 -> 42.43666667 | I76: =D76*H76 -> 84.87333333
B77: Resma de papel A4 | C77: un. | D77: =400/500 -> 0.8 | H77: =N69 -> 14.43333333 | I77: =D77*H77 -> 11.54666667
B80: SUB-TOTAL | I80: =I76+I77 -> 96.42
B81: MATERIAL
B82: DESCRIÇÃO | C82: UNIDADE | D82: QUANT. | H82: P.UNIT. | I82: P.TOTAL
B85: SUB-TOTAL
B86: MÃO DE OBRA
B87: DESCRIÇÃO | C87: UNIDADE | D87: QUANT. | H87: P.UNIT. | I87: P.TOTAL
B92: SUB-TOTAL | I92: =SUM(I88:I91) -> 0
B93: Encargos Sociais horista | I93: =(I88*G93)+((I89+I90+I91)*C93) -> 0
B94: CUSTO | I94: =I92+I93 -> 0
B95: CUSTO UNITÁRIO DO SERVIÇO | I95: =I80+I94 -> 96.42
B96: TOTAL DO SERVIÇO - R$ | I96: =I95 -> 96.42

Sheet Custos_Mob_Desmob
A1: MOBILIZAÇÃO/DESMOBILIZAÇÃO
A3: Manutenção e Calibração dos Medidores de Vazão nos Perímetros de Irrigação da Codevasf
A4: DISCRIMINAÇÃO | E4: UNID. | F4: QTD | G4: CUSTOS UNITÁRIOS | H4: CUSTOS TOTAIS | M4: Cotações / passagens aéreas / ida
J5: Data da pesquisa | K5: Data da viagem | L5: Itinerário | M5: Avianca | N5: GOL | O5: AZUL | P5: Média
A6: 1. DESLOCAMENTO DA EQUIPE | J6: 2014-04-25 | K6: 2014-06-29 | L6: SP - PE | M6: 575 | N6: 518.9 | O6: 999 | P6: =AVERAGE(M6:O6) -> 697.6333333
A7: 1.1 Passagens aéreas | J7: 2014-04-25 | K7: 2014-07-23 | L7: PE - MG | M7: - | N7: 1157.8 | O7: 1094.9 | P7: =AVERAGE(N7:O7) -> 1126.35
A8: 1.1.1 São Paulo - Pernambuco | E8: unid. | F8: 2 | G8: =P6 -> 697.6333333 | H8: =F8*G8 -> 1395.266667 | J8: 2014-04-25 | K8: 2014-07-26 | L8: MG - SP | M8: - | N8: 328.9 | O8: 259.9 | P8: =AVERAGE(N8:O8) -> 294.4
A9: 1.1.2 Pernambuco - Minas Gerais | E9: unid. | F9: 2 | G9: =P7 -> 1126.35 | H9: =F9*G9 -> 2252.7
A10: 1.1.3 Minas Gerais - São Paulo | E10: unid. | F10: 2 | G10: =P8 -> 294.4 | H10: =F10+G10 -> 296.4
A12: 1.2 Táxi | E12: unid. | F12: 2 | G12: 80 | H12: =F12*G12 -> 160
A19: CUSTOS TOTAIS DE MOBILIZAÇÃO/DESMOBILIZAÇÃO | H19: =SUM(H8:H17) -> 4104.366667

Sheet Custos_permanência
A1: ADMINISTRAÇÃO LOCAL Custo de Permanência para Execução dos Serviços
M2: Perímetro | N2: Nº de Medidores | O2: Município | P2: Estado | Q2: Distância à Sede do Município (km) | R2: km percorrido
A3: Manutenção e Calibração dos Medidores de Vazão nos Perímetros de Irrigação da Codevasf
A4: DISCRIMINAÇÃO | E4: UNID. | F4: QTD | G4: CUSTOS UNITARIOS | H4: CUSTOS TOTAIS | M4: Nilo Coelho | N4: 3 | O4: Petrolina | P4: PE | Q4: 10 | R4: =Q4*2*N4 -> 60
M5: Curaçá CPII | N5: 1 | O5: Juazeiro | P5: BA | Q5: 70 | R5: =Q5*2*N5 -> 140
A6: 1. Diárias | M6: Curaçá | N6: 1 | O6: Juazeiro | P6: BA | Q6: 70 | R6: 140
A7: 1.1 Hospedagem | E7: unid. | F7: 70 | G7: 116 | H7: =F7*G7 -> 8120 | I7: Tabela Codevasf | M7: Maniçoba | N7: 2 | O7: Juazeiro | P7: BA | Q7: 25 | R7: 100
M8: Mandacaru | N8: 1 | O8: Juazeiro | P8: BA | Q8: 15 | R8: 30
A9: 2 Deslocamentos | M9: Gorutuba | N9: 1 | O9: Montes Claros | P9: MG | Q9: 130 | R9: 260
A10: 2.2 Aluguel de carro | E10: km | F10: =R15 -> 730 | G10: 1.65 | H10: =F10*G10 -> 1204.5 | I10: Tabela Codevasf
A12: 3. Alimentação | E12: unid. | F12: 70 | G12: 66 | H12: =F12*G12 -> 4620 | I12: Tabela Codevasf
A14: CUSTOS TOTAIS | H14: =SUM(H6:H13) -> 13944.5
Q15: Total | R15: =SUM(R4:R14) -> 730

Sheet Custos_gráficos
A1: SERVIÇOS GRÁFICOS | G1: CODIGO:
A3: NOME DA CONSULTORA:
A5: PROJETO: Carneiros-Tapera | C5: OBJETO:EVTEA | G5: EDITAL:
A7: DISCRIMINAÇÃO | D7: QTD | E7: Nº DE | F7: CUSTOS
E8: VIAS | F8: UNITÁRIO | G8: TOTAL
A10: Relatório Parcial | D10: 9 | E10: 2 | F10: =CPU!I71 -> 12.0525 | G10: =D10*E10*F10 -> 216.945
A11: Relatório Final | D11: 1 | E11: 2 | F11: =CPU!I96 -> 96.42 | G11: =D11*E11*F11 -> 192.84
A33: SUBTOTAL | G33: =SUM(G10:G11) -> 409.785
A35: TOTAL DOS SERVIÇOS GRÁFICOS | G35: =G33 -> 409.785
A36: NOME DO INFORMANTE: | D36: QUALIFICAÇÃO:
A38: ASSINTATURA: | F38: DATA:
A40: OBSERVAÇÃO:
A41: 1 - RELACIONAR OS RELAT. COM RESPECTIVAS QTD E Nº DE VIAS, BEM COMO SEUS CUSTOS C/ IMPRESSÃO
A42: 2 - SERÁ CONSIDERADO UMA QUANTIDADE ESTIMADA DE 350 PÁGINAS POR VOLUME E O VOLUME DE DESENHO
A43: SENDO CONSIDERADO EM FOLHA A3 NUMA QUANTIDADE ESTIMADA DE 350 PÁGINAS

Sheet Encargos Sociais
A1: ENCARGOS SOCIAIS (%)
A3: Taxas de leis sociais e riscos do trabalho (%)
C4: HORISTA
A5: A1 | B5: Previdência Social | C5: 20
A6: A2 | B6: Fundo de Garantia por Tempo de Serviço | C6: 8
A7: A3 | B7: Salário Educação | C7: 2.5
A8: A4 | B8: Serviço Social da Indústira (Sesi) | C8: 1.5
A9: A5 | B9: Serviço Nacional de Aprendizagem Industrial (Senai) | C9: 1
A10: A6 | B10: Serviço de Apoio a Pequena e Média Empresa (Sebrae) | C10: 0.6
A11: A7 | B11: Instituto Nacional de Colonização e Reforma Agrária (Incra) | C11: 0.2
A12: A8 | B12: Seguro contra os acidentes de trabalho (INSS) | C12: 3
A13: A9 | B13: Seconci (Serviço Social da Indústria da Construção e do Mobiliário) | C13: 0
A15: A | B15: Total dos Encargos Sociais | C15: =SUM(C5:C13) -> 36.8
A17: B1 | B17: Repouso Semanal e feriados | C17: 22.9
A18: B2 | B18: Auxílio-enfermidade | C18: 0.79
A19: B3 | B19: Licença-paternidade | C19: 0.34
A20: B4 | B20: 13° salário | C20: 10.57
A21: B5 | B21: Dias de chuva / faltas justificadas na obra / outras dificuldades | C21: 4.57
A23: B | B23: Total dos Encargos Sociais que recebem as incidências de A | C23: =SUM(C17:C21) -> 39.17
A25: C1 | B25: Depósito por despedida injusta: 50% sobre (A2 + (A2 x B)) | C25: =ROUND(((C6/100)+((C6/100)*(C23/100)))/2*100,2) -> 5.57
A26: C2 | B26: Férias (indenizadas) | C26: 14.06
A27: C3 | B27: Aviso-prévio (indenizado) – decreto 6.727/2009 | C27: 13.12
A29: C | B29: Total dos Encargos Sociais que não recebem as incidências de A | C29: =SUM(C25:C27) -> 32.75
A31: D1 | B31: Reincidência de A sobre B | C31: =ROUND((C15/100*C23/100)*100,2) -> 14.41
A32: D2 | B32: Reincidência de A (exceto Seconci) sobre C3 | C32: =ROUND(((C15-C13)*C27)/100,2) -> 4.83
A34: D | B34: Total da Reincidências | C34: =SUM(C31:C32) -> 19.24
B36: T O T A L | C36: =ROUND(C34+C29+C23+C15,2) -> 127.96

Sheet BDI
B3: DETALHAMENTO DO BDI
B4: Serviços
B7: Item | C7: Descrição dos serviços | D7: Preço de Venda (%) | E7: Custo Direto (%)
B9: 1 | C9: Administração Central (A) | E9: 0.04
B11: 2 | C11: Impostos e Taxas (I) | D11: =SUM(D12:D14) -> 0.0865 | E11: =D11*(1+$F$23) -> 0.0865
B12: 2.1 | C12: ISS | D12: 0.05 | E12: =D12*(1+$F$23) -> 0.05
B13: 2.2 | C13: PIS | D13: 0.0065 | E13: =D13*(1+$F$23) -> 0.0065
B14: 2.3 | C14: Cofins | D14: 0.03 | E14: =D14*(1+$F$23) -> 0.03
B16: 3 | C16: Seguro e garantia (R) | E16: 0.0045
B18: 4 | C18: Despesas Financeiras (DF) | E18: 0.01
B20: 5 | C20: Lucro (L) | E20: 0.08
C22: BDI* (%) | E22: =ROUND(((((1+$E$9+$E$16)*(1+$E$18)*(1+$E$20))/(1-$E$11))-1),4) -> 0.2472
B25: Cálculo de acordo com o Acórdão nº 2369/2011 - TCU - Plenário - DOU nº174 em 20 de setembro de 2011 BDI (%) = ((((1+AC)*(1+L))/(1-I))-1)

Sheet SINAPI
A1: Salários SINAPI
A2: Profissional | B2: Código | C2: Salários com encargos | D2: Encargos/Horista (%) | E2: Salário sem encargos
A3: Engenheiro Eletricista Pleno | B3: 2707 | C3: 120.72 | D3: 1.216 | E3: =C3/(1+D3) -> 54.4765343
A4: Eletrotécnico | B4: 2438 | C4: 18.36 | D4: 1.216 | E4: =C4/(1+D4) -> 8.285198556

Sheet Cronograma_instalação
B1: Ministério da Integração Nacional - M I
B2: Companhia de Desenvolvimento dos Vales do São Francisco e do Parnaíba
B3: Área de Gestão de Empreendimentos de Irrigação
A4: CRONOGRAMA DE INSTALAÇÃO DE MEDIDORES DE VAZÃO NAS CAPTAÇÕES DOS PERÍMETROS IRRIGADOS
E5: Dias
A6: PERÍMETRO | B6: UF | C6: SR | D6: QUANT. | E6: 1º | F6: 2º | G6: 3º | H6: 4º | I6: 5º | J6: 6º | K6: 7º | L6: 8º | M6: 9º | N6: 10º | O6: 11º | P6: 12º | Q6: 13º | R6: 14º | S6: 15º | T6: 16º | U6: 17º | V6: 18º | W6: 19º | X6: 20º | Y6: 21º | Z6: 22º | AA6: 23º | AB6: 24º | AC6: 25º | AD6: 26º | AE6: 27º | AF6: 28º | AG6: 29º | AH6: 30º | AI6: 31º | AJ6: 32º | AK6: 33º | AL6: 34º | AM6: 35º | AN6: 36º | AO6: 37º | AP6: 38º | AQ6: 39º - 90º
A7: Nilo Coelho | B7: PE | C7: 3ª | D7: 3 | E7: y | F7: y | G7: y | H7: y | I7: y | J7: x | K7: x | L7: y | M7: z | N7: z | Q7: x | R7: x | X7: x | Y7: x | AE7: x | AF7: x | AL7: x | AM7: x | AQ7: Assistência Técnica e Entrega do Relatório Final
A8: Curaçá | B8: BA | C8: 6ª | D8: 1 | J8: x | K8: x | O8: y | P8: y | Q8: x | R8: x | S8: z | X8: x | Y8: x | AE8: x | AF8: x | AL8: x | AM8: x
A9: Curaçá CP2 | B9: BA | C9: 6ª | D9: 1 | J9: x | K9: x | Q9: x | R9: x | T9: y | U9: y | V9: z | X9: x | Y9: x | AE9: x | AF9: x | AL9: x | AM9: x
A10: Mandacaru | B10: BA | C10: 6ª | D10: 1 | J10: x | K10: x | Q10: x | R10: x | W10: y | X10: x | Y10: x | Z10: y | AA10: z | AE10: x | AF10: x | AL10: x | AM10: x
A11: Maniçoba | B11: BA | C11: 6ª | D11: 2 | J11: x | K11: x | Q11: x | R11: x | X11: x | Y11: x | AB11: y | AC11: y | AD11: z | AE11: x | AF11: x | AG11: y | AH11: y | AI11: z | AL11: x | AM11: x
A12: Gorutuba | B12: MG | C12: 1ª | D12: 1 | J12: x | K12: x | Q12: x | R12: x | X12: x | Y12: x | AE12: x | AF12: x | AL12: x | AM12: x | AN12: y | AO12: y | AP12: z
A16: Fim de semana | D16: x
A17: Trabalho de campo | D17: y
A18: Operação Assistida | D18: z

Sheet Critérios de Medição
B1: Ministério da Integração Nacional - M I
B2: Companhia de Desenvolvimento dos Vales do São Francisco e do Parnaíba
B3: Área de Gestão de Empreendimentos de Irrigação
D4: Valor Total | F4: =Geral!F21 -> 44521.65224
D5: Valor médio por medidor | F5: =F4/9 -> 4946.850249
A6: Critérios de Medição / Cronograma Físico-Financeiro
A7: Eventos | B7: Composição | C7: Quantitativo | D7: Fracionamento (%) | E7: Coeficiente | F7: Preço Unitário (R$)
A8: Relatório Técnico | B8: Certificado de Calibração | C8: 1 | D8: 20 | E8: 0.7 | F8: =$F$5*0.2*0.7 -> 692.5590348
B9: Certificado de Operação | D9: 20 | F9: =$F$5*0.2*0.7 -> 692.5590348
B10: Emissão e Entrega do Relatório Técnico de Manutenção | D10: 60 | F10: =$F$5*0.6*0.7 -> 2077.677104
A11: Relatório Parcial Definitivo | B11: Emissão e Entrega | C11: 1 | D11: 100 | E11: 0.1 | F11: =$F$4*1*0.1 -> 4452.165224
A12: Relatório Final Definitivo | B12: Emissão e Entrega | C12: 1 | D12: 100 | E12: 0.15 | F12: =$F$4*1*0.15 -> 6678.247836
A13: Termo de Encerramento Físico | B13: Aceitação | C13: 1 | D13: 100 | E13: 0.05 | F13: =$F$4*1*0.05 -> 2226.082612
